[Event "Titled Tuesday Blitz December 7 2021"]
[White "Yeremyan, Alen"]
[Black "Abdilkhair, Abilmansur"]
[WhiteFideId "13308998"]
[BlackFideId "13716417"]
[WhiteElo "2734"]
[BlackElo "2417"]
[Result "0-1"]
[Round "01"]
[TimeControl "180+1"]
[Date "2021.12.07"]
[WhiteClock "0:00:33"]
[BlackClock "0:00:08"]

1. e4 {[%clk 0:02:59]}  c6 {[%clk 0:02:59]} 2. Nc3 {[%clk 0:02:58]}  d5 {[%clk 0:02:59]} 3. Qe2 {[%clk 0:02:59]}  dxe4 {[%clk 0:02:59]} 4. Nxe4 {[%clk 0:03:00]}  g6 {[%clk 0:02:47]} 5. g3 {[%clk 0:02:59]}  Bg7 {[%clk 0:02:47]} 6. Bg2 {[%clk 0:02:59]}  Nf6 {[%clk 0:02:46]} 7. d3 {[%clk 0:03:00]}  O-O {[%clk 0:02:46]} 8. Nf3 {[%clk 0:03:00]}  Nxe4 {[%clk 0:02:43]} 9. dxe4 {[%clk 0:03:01]}  Qa5+ {[%clk 0:02:38]} 10. c3 {[%clk 0:03:00]}  Bxc3+ {[%clk 0:02:34]} 11. bxc3 {[%clk 0:02:47]}  Qxc3+ {[%clk 0:02:35]} 12. Qd2 {[%clk 0:02:47]}  Qxa1 {[%clk 0:02:35]} 13. O-O {[%clk 0:02:48]}  Qg7 {[%clk 0:01:58]} 14. Bb2 {[%clk 0:02:44]}  f6 {[%clk 0:01:56]} 15. e5 {[%clk 0:02:43]}  Nd7 {[%clk 0:01:51]} 16. Re1 {[%clk 0:02:38]}  Nb6 {[%clk 0:01:12]} 17. Qc2 {[%clk 0:02:13]}  Be6 {[%clk 0:01:05]} 18. exf6 {[%clk 0:02:11]}  exf6 {[%clk 0:00:53]} 19. Rxe6 {[%clk 0:02:11]}  Rae8 {[%clk 0:00:54]} 20. Nd4 {[%clk 0:02:10]}  Qf7 {[%clk 0:00:45]} 21. Bh3 {[%clk 0:01:58]}  Nd5 {[%clk 0:00:42]} 22. Qe2 {[%clk 0:01:50]}  f5 {[%clk 0:00:27]} 23. Qe5 {[%clk 0:01:43]}  Nf6 {[%clk 0:00:21]} 24. Bf1 {[%clk 0:01:39]}  Rxe6 {[%clk 0:00:20]} 25. Nxe6 {[%clk 0:01:39]}  Re8 {[%clk 0:00:19]} 26. Bc4 {[%clk 0:01:30]}  b5 {[%clk 0:00:20]} 27. Bb3 {[%clk 0:01:21]}  c5 {[%clk 0:00:20]} 28. Bd5 {[%clk 0:01:20]}  c4 {[%clk 0:00:12]} 29. Qxf6 {[%clk 0:01:14]}  Qxf6 {[%clk 0:00:13]} 30. Bxf6 {[%clk 0:01:15]}  Kf7 {[%clk 0:00:14]} 31. Bc3 {[%clk 0:01:04]}  Rxe6 {[%clk 0:00:13]} 32. f4 {[%clk 0:01:04]}  Ke7 {[%clk 0:00:13]} 33. a3 {[%clk 0:01:03]}  Rd6 {[%clk 0:00:13]} 34. Bb4 {[%clk 0:01:03]}  Kd7 {[%clk 0:00:14]} 35. Bf3 {[%clk 0:00:47]}  Rd3 {[%clk 0:00:13]} 36. Kf2 {[%clk 0:00:47]}  Rb3 {[%clk 0:00:12]} 37. Be2 {[%clk 0:00:43]}  a5 {[%clk 0:00:13]} 38. Bf8 {[%clk 0:00:42]}  Rb2 {[%clk 0:00:13]} 39. Ke3 {[%clk 0:00:35]}  Kc6 {[%clk 0:00:14]} 40. Bf3+ {[%clk 0:00:35]}  Kb6 {[%clk 0:00:14]} 41. Be7 {[%clk 0:00:35]}  b4 {[%clk 0:00:13]} 42. axb4 {[%clk 0:00:34]}  axb4 {[%clk 0:00:14]} 43. Kd4 {[%clk 0:00:33]}  c3 {[%clk 0:00:15]} 44. Kd3 {[%clk 0:00:33]}  Rd2+ {[%clk 0:00:12]} 45. Ke3 {[%clk 0:00:33]}  Kb5 {[%clk 0:00:11]} 46. Be2+ {[%clk 0:00:32]}  Ka4 {[%clk 0:00:10]} 47. Bf6 {[%clk 0:00:33]}  Kb3 {[%clk 0:00:10]} 48. Bd4 {[%clk 0:00:33]}  Rxd4 {[%clk 0:00:08]} 0-1


[Site "https://www.chess.com"]

[Event "Titled Tuesday Blitz December 7 2021"]
[White "Atabayev, Saparmyrat"]
[Black "Todorovic, Bojan"]
[WhiteFideId "14000571"]
[BlackFideId "917087"]
[WhiteElo "2483"]
[BlackElo "2266"]
[Result "1-0"]
[Round "02"]
[TimeControl "180+1"]
[Date "2021.12.07"]
[WhiteClock "0:02:20"]
[BlackClock "0:00:01"]

1. e4 {[%clk 0:03:00]}  c5 {[%clk 0:02:59]} 2. d4 {[%clk 0:02:59]}  cxd4 {[%clk 0:02:57]} 3. Nf3 {[%clk 0:03:00]}  e6 {[%clk 0:02:56]} 4. Nxd4 {[%clk 0:03:01]}  a6 {[%clk 0:02:56]} 5. Nc3 {[%clk 0:03:01]}  Qc7 {[%clk 0:02:55]} 6. g3 {[%clk 0:03:02]}  Nf6 {[%clk 0:02:54]} 7. Bg2 {[%clk 0:03:02]}  d6 {[%clk 0:02:49]} 8. O-O {[%clk 0:03:03]}  Be7 {[%clk 0:02:48]} 9. Qe2 {[%clk 0:03:02]}  O-O {[%clk 0:02:47]} 10. Bd2 {[%clk 0:03:02]}  Nbd7 {[%clk 0:02:46]} 11. Rae1 {[%clk 0:03:01]}  Rb8 {[%clk 0:02:29]} 12. f4 {[%clk 0:03:01]}  b5 {[%clk 0:02:13]} 13. e5 {[%clk 0:02:56]}  b4 {[%clk 0:02:13]} 14. Nc6 {[%clk 0:02:40]}  bxc3 {[%clk 0:01:44]} 15. Nxe7+ {[%clk 0:02:40]}  Kh8 {[%clk 0:01:44]} 16. Bxc3 {[%clk 0:02:41]}  dxe5 {[%clk 0:01:24]} 17. Nc6 {[%clk 0:02:33]}  Rb5 {[%clk 0:00:49]} 18. Nxe5 {[%clk 0:02:33]}  Nxe5 {[%clk 0:00:44]} 19. Bxe5 {[%clk 0:02:34]}  Qb6+ {[%clk 0:00:42]} 20. Kh1 {[%clk 0:02:33]}  Bb7 {[%clk 0:00:42]} 21. Bxf6 {[%clk 0:02:33]}  gxf6 {[%clk 0:00:41]} 22. b3 {[%clk 0:02:34]}  a5 {[%clk 0:00:20]} 23. c4 {[%clk 0:02:34]}  Rc5 {[%clk 0:00:20]} 24. Bxb7 {[%clk 0:02:32]}  Qxb7+ {[%clk 0:00:20]} 25. Qg2 {[%clk 0:02:33]}  Qb4 {[%clk 0:00:14]} 26. Rd1 {[%clk 0:02:33]}  a4 {[%clk 0:00:14]} 27. Qf3 {[%clk 0:02:33]}  axb3 {[%clk 0:00:14]} 28. axb3 {[%clk 0:02:34]}  Rb8 {[%clk 0:00:12]} 29. Rd3 {[%clk 0:02:35]}  Ra5 {[%clk 0:00:10]} 30. Rfd1 {[%clk 0:02:35]}  Raa8 {[%clk 0:00:07]} 31. Qg4 {[%clk 0:02:31]}  Qc5 {[%clk 0:00:05]} 32. Qh4 {[%clk 0:02:31]}  Qf5 {[%clk 0:00:03]} 33. Re3 {[%clk 0:02:24]}  Ra2 {[%clk 0:00:02]} 34. Rde1 {[%clk 0:02:24]}  Rd8 {[%clk 0:00:01]} 35. Qh6 {[%clk 0:02:20]} 1-0


[Site "https://www.chess.com"]

[Event "Titled Tuesday Blitz December 7 2021"]
[White "Atakishiyev, Elmar"]
[Black "Rengifo Blancas, Renzo Jhonathan"]
[WhiteFideId "13410547"]
[BlackFideId "3807185"]
[WhiteElo "2088"]
[BlackElo "2058"]
[Result "1-0"]
[Round "02"]
[TimeControl "180+1"]
[Date "2021.12.07"]
[WhiteClock "0:00:34"]
[BlackClock "0:00:06"]

1. Nf3 {[%clk 0:03:00]}  Nf6 {[%clk 0:02:58]} 2. c4 {[%clk 0:03:00]}  c6 {[%clk 0:02:57]} 3. g3 {[%clk 0:02:59]}  d5 {[%clk 0:02:58]} 4. Bg2 {[%clk 0:02:59]}  Bf5 {[%clk 0:02:57]} 5. O-O {[%clk 0:02:59]}  e6 {[%clk 0:02:58]} 6. b3 {[%clk 0:03:00]}  h6 {[%clk 0:02:58]} 7. Bb2 {[%clk 0:03:00]}  Be7 {[%clk 0:02:58]} 8. d3 {[%clk 0:03:00]}  Bh7 {[%clk 0:02:57]} 9. Nbd2 {[%clk 0:03:00]}  O-O {[%clk 0:02:57]} 10. a3 {[%clk 0:03:00]}  Nbd7 {[%clk 0:02:56]} 11. Rc1 {[%clk 0:03:00]}  a5 {[%clk 0:02:56]} 12. Qc2 {[%clk 0:03:00]}  Re8 {[%clk 0:02:47]} 13. Rfd1 {[%clk 0:03:01]}  Bf8 {[%clk 0:02:47]} 14. Qb1 {[%clk 0:03:01]}  e5 {[%clk 0:02:47]} 15. Qa1 {[%clk 0:03:01]}  Bd6 {[%clk 0:02:46]} 16. Nf1 {[%clk 0:02:53]}  Qb6 {[%clk 0:02:39]} 17. N1d2 {[%clk 0:02:39]}  e4 {[%clk 0:02:22]} 18. dxe4 {[%clk 0:02:23]}  dxe4 {[%clk 0:02:20]} 19. Nd4 {[%clk 0:02:17]}  e3 {[%clk 0:02:14]} 20. fxe3 {[%clk 0:02:14]}  Rxe3 {[%clk 0:02:12]} 21. Kh1 {[%clk 0:02:05]}  Rae8 {[%clk 0:01:16]} 22. c5 {[%clk 0:02:03]}  Bxc5 {[%clk 0:01:08]} 23. Nc4 {[%clk 0:02:03]}  Qc7 {[%clk 0:01:04]} 24. Nxe3 {[%clk 0:02:02]}  Rxe3 {[%clk 0:01:04]} 25. Rf1 {[%clk 0:02:00]}  Bxd4 {[%clk 0:00:50]} 26. Bxd4 {[%clk 0:01:58]}  Rxe2 {[%clk 0:00:49]} 27. Rce1 {[%clk 0:01:57]}  Rd2 {[%clk 0:00:18]} 28. Qc3 {[%clk 0:01:20]}  Ra2 {[%clk 0:00:17]} 29. Qc4 {[%clk 0:01:17]}  Rc2 {[%clk 0:00:15]} 30. Bc3 {[%clk 0:01:07]}  Bg6 {[%clk 0:00:13]} 31. Qd4 {[%clk 0:01:05]}  Nf8 {[%clk 0:00:10]} 32. Rxf6 {[%clk 0:01:02]}  gxf6 {[%clk 0:00:10]} 33. Qxf6 {[%clk 0:01:03]}  Rxc3 {[%clk 0:00:10]} 34. Qxc3 {[%clk 0:01:03]}  Ne6 {[%clk 0:00:10]} 35. Qf6 {[%clk 0:00:59]}  Qd6 {[%clk 0:00:09]} 36. Rf1 {[%clk 0:00:57]}  Qxa3 {[%clk 0:00:07]} 37. Qe5 {[%clk 0:00:54]}  Qxb3 {[%clk 0:00:07]} 38. Bh3 {[%clk 0:00:51]}  a4 {[%clk 0:00:06]} 39. Bf5 {[%clk 0:00:47]}  Qd5+ {[%clk 0:00:06]} 40. Qxd5 {[%clk 0:00:48]}  cxd5 {[%clk 0:00:07]} 41. Bxg6 {[%clk 0:00:48]}  fxg6 {[%clk 0:00:07]} 42. Rb1 {[%clk 0:00:48]}  Nc5 {[%clk 0:00:05]} 43. Rb5 {[%clk 0:00:47]}  Nb3 {[%clk 0:00:02]} 44. Rxb7 {[%clk 0:00:47]}  d4 {[%clk 0:00:03]} 45. Kg2 {[%clk 0:00:43]}  d3 {[%clk 0:00:02]} 46. Kf3 {[%clk 0:00:43]}  d2 {[%clk 0:00:03]} 47. Kf2 {[%clk 0:00:43]}  Kf8 {[%clk 0:00:03]} 48. Ke2 {[%clk 0:00:42]}  Nd4+ {[%clk 0:00:03]} 49. Kxd2 {[%clk 0:00:42]}  Nf3+ {[%clk 0:00:04]} 50. Ke3 {[%clk 0:00:42]}  Nxh2 {[%clk 0:00:04]} 51. Kf4 {[%clk 0:00:41]}  Nf1 {[%clk 0:00:04]} 52. Rb2 {[%clk 0:00:38]}  g5+ {[%clk 0:00:04]} 53. Kf3 {[%clk 0:00:36]}  a3 {[%clk 0:00:04]} 54. Rf2 {[%clk 0:00:35]}  g4+ {[%clk 0:00:04]} 55. Kf4 {[%clk 0:00:34]}  Kg7 {[%clk 0:00:04]} 56. Rxf1 {[%clk 0:00:34]}  h5 {[%clk 0:00:04]} 57. Ra1 {[%clk 0:00:34]}  Kg6 {[%clk 0:00:05]} 58. Rxa3 {[%clk 0:00:34]}  h4 {[%clk 0:00:05]} 59. Ra6+ {[%clk 0:00:34]}  Kg7 {[%clk 0:00:06]} 60. gxh4 {[%clk 0:00:34]} 1-0


[Site "https://www.chess.com"]

[Event "Titled Tuesday Blitz December 7 2021"]
[White "Baskin, Robert"]
[Black "Zierk, Steven"]
[WhiteFideId "24662402"]
[BlackFideId "2034255"]
[WhiteElo "2488"]
[BlackElo "2494"]
[Result "1-0"]
[Round "02"]
[TimeControl "180+1"]
[Date "2021.12.07"]
[WhiteClock "0:00:02"]
[BlackClock "0:00:03"]

1. e4 {[%clk 0:03:00]}  e6 {[%clk 0:02:58]} 2. d4 {[%clk 0:03:00]}  d5 {[%clk 0:02:57]} 3. Nc3 {[%clk 0:03:00]}  Bb4 {[%clk 0:02:53]} 4. e5 {[%clk 0:02:57]}  c5 {[%clk 0:02:53]} 5. a3 {[%clk 0:02:57]}  Bxc3+ {[%clk 0:02:52]} 6. bxc3 {[%clk 0:02:58]}  Qa5 {[%clk 0:02:53]} 7. Bd2 {[%clk 0:02:57]}  Qa4 {[%clk 0:02:53]} 8. Qb1 {[%clk 0:02:53]}  c4 {[%clk 0:02:52]} 9. Ne2 {[%clk 0:02:46]}  Nc6 {[%clk 0:02:48]} 10. Nf4 {[%clk 0:02:46]}  Bd7 {[%clk 0:02:47]} 11. Nh5 {[%clk 0:02:45]}  g6 {[%clk 0:02:47]} 12. Nf4 {[%clk 0:02:32]}  O-O-O {[%clk 0:02:41]} 13. h4 {[%clk 0:02:31]}  f6 {[%clk 0:02:34]} 14. exf6 {[%clk 0:01:59]}  Nxf6 {[%clk 0:02:35]} 15. g3 {[%clk 0:01:57]}  e5 {[%clk 0:02:20]} 16. dxe5 {[%clk 0:01:56]}  Nxe5 {[%clk 0:02:10]} 17. Bg2 {[%clk 0:01:56]}  Bf5 {[%clk 0:01:45]} 18. Be3 {[%clk 0:01:03]}  Bxc2 {[%clk 0:01:20]} 19. Qb4 {[%clk 0:00:58]}  Nc6 {[%clk 0:00:57]} 20. Bh3+ {[%clk 0:00:38]}  Kb8 {[%clk 0:00:52]} 21. Qxa4 {[%clk 0:00:32]}  Bxa4 {[%clk 0:00:52]} 22. Ne6 {[%clk 0:00:31]}  Rc8 {[%clk 0:00:32]} 23. Nc5 {[%clk 0:00:15]}  Bc2 {[%clk 0:00:27]} 24. Bf4+ {[%clk 0:00:11]}  Ka8 {[%clk 0:00:27]} 25. Bxc8 {[%clk 0:00:10]}  Rxc8 {[%clk 0:00:28]} 26. Kd2 {[%clk 0:00:09]}  Bf5 {[%clk 0:00:27]} 27. f3 {[%clk 0:00:07]}  h5 {[%clk 0:00:21]} 28. Rhe1 {[%clk 0:00:06]}  d4 {[%clk 0:00:19]} 29. cxd4 {[%clk 0:00:05]}  Nxd4 {[%clk 0:00:15]} 30. Re5 {[%clk 0:00:02]}  Nxf3+ {[%clk 0:00:15]} 31. Kc3 {[%clk 0:00:01]}  Nxe5 {[%clk 0:00:12]} 32. Bxe5 {[%clk 0:00:02]}  Rxc5 {[%clk 0:00:07]} 33. Bxf6 {[%clk 0:00:01]}  Bd3 {[%clk 0:00:07]} 34. Bd4 {[%clk 0:00:02]}  Rf5 {[%clk 0:00:06]} 35. Re1 {[%clk 0:00:02]}  b6 {[%clk 0:00:07]} 36. Re8+ {[%clk 0:00:02]}  Kb7 {[%clk 0:00:07]} 37. Re7+ {[%clk 0:00:03]}  Ka6 {[%clk 0:00:07]} 38. Re5 {[%clk 0:00:02]}  Rf3 {[%clk 0:00:06]} 39. Rg5 {[%clk 0:00:03]}  b5 {[%clk 0:00:04]} 40. Re5 {[%clk 0:00:02]}  Bf5+ {[%clk 0:00:04]} 41. Kb4 {[%clk 0:00:01]}  Rb3+ {[%clk 0:00:04]} 42. Kc5 {[%clk 0:00:02]}  c3 {[%clk 0:00:03]} 43. Re7 {[%clk 0:00:01]}  c2 {[%clk 0:00:03]} 44. Kd6 {[%clk 0:00:02]} 1-0


[Site "https://www.chess.com"]

[Event "Titled Tuesday Blitz December 7 2021"]
[White "Bayasgalan, Khishigbaatar"]
[Black "Manukyan, Sargis A."]
[WhiteFideId "4904311"]
[BlackFideId "13303970"]
[WhiteElo "1624"]
[BlackElo "2187"]
[Result "1-0"]
[Round "02"]
[TimeControl "180+1"]
[Date "2021.12.07"]
[WhiteClock "0:00:50"]
[BlackClock "0:00:29"]

1. d4 {[%clk 0:03:00]}  d5 {[%clk 0:02:59]} 2. c4 {[%clk 0:02:59]}  e6 {[%clk 0:02:59]} 3. e3 {[%clk 0:02:57]}  Nf6 {[%clk 0:03:00]} 4. Nc3 {[%clk 0:02:57]}  Be7 {[%clk 0:03:01]} 5. Bd3 {[%clk 0:02:57]}  O-O {[%clk 0:03:01]} 6. Nf3 {[%clk 0:02:57]}  dxc4 {[%clk 0:03:02]} 7. Bxc4 {[%clk 0:02:57]}  b6 {[%clk 0:03:03]} 8. O-O {[%clk 0:02:57]}  Bb7 {[%clk 0:03:04]} 9. b3 {[%clk 0:02:46]}  Nbd7 {[%clk 0:03:02]} 10. Ne5 {[%clk 0:02:39]}  Nxe5 {[%clk 0:03:00]} 11. dxe5 {[%clk 0:02:39]}  Qxd1 {[%clk 0:03:00]} 12. Rxd1 {[%clk 0:02:39]}  Ne4 {[%clk 0:03:01]} 13. Nxe4 {[%clk 0:02:37]}  Bxe4 {[%clk 0:03:02]} 14. f3 {[%clk 0:02:32]}  Bc6 {[%clk 0:02:59]} 15. a4 {[%clk 0:02:27]}  a5 {[%clk 0:02:56]} 16. Ba3 {[%clk 0:02:22]}  Bxa3 {[%clk 0:02:54]} 17. Rxa3 {[%clk 0:02:21]}  Rfd8 {[%clk 0:02:55]} 18. Raa1 {[%clk 0:02:20]}  Kf8 {[%clk 0:02:54]} 19. Kf2 {[%clk 0:02:17]}  Ke7 {[%clk 0:02:53]} 20. Rd4 {[%clk 0:02:17]}  Rxd4 {[%clk 0:02:43]} 21. exd4 {[%clk 0:02:17]}  Rd8 {[%clk 0:02:42]} 22. Ke3 {[%clk 0:02:16]}  Bd5 {[%clk 0:02:41]} 23. Rc1 {[%clk 0:02:07]}  Bxc4 {[%clk 0:02:36]} 24. Rxc4 {[%clk 0:02:00]}  Kd7 {[%clk 0:02:34]} 25. f4 {[%clk 0:01:56]}  g6 {[%clk 0:02:31]} 26. Kf3 {[%clk 0:01:49]}  h5 {[%clk 0:02:29]} 27. Kg3 {[%clk 0:01:48]}  c6 {[%clk 0:02:27]} 28. Kh4 {[%clk 0:01:46]}  b5 {[%clk 0:02:25]} 29. axb5 {[%clk 0:01:46]}  cxb5 {[%clk 0:02:26]} 30. Rc5 {[%clk 0:01:46]}  Rb8 {[%clk 0:02:25]} 31. h3 {[%clk 0:01:42]}  a4 {[%clk 0:02:24]} 32. bxa4 {[%clk 0:01:42]}  b4 {[%clk 0:02:25]} 33. Rc2 {[%clk 0:01:32]}  b3 {[%clk 0:02:24]} 34. Rb2 {[%clk 0:01:32]}  Rb4 {[%clk 0:02:24]} 35. Kg5 {[%clk 0:01:31]}  Kc6 {[%clk 0:02:00]} 36. Kf6 {[%clk 0:01:31]}  Kd5 {[%clk 0:02:01]} 37. Kxf7 {[%clk 0:01:31]}  Kxd4 {[%clk 0:02:02]} 38. Kxe6 {[%clk 0:01:25]}  Kc3 {[%clk 0:02:02]} 39. Rb1 {[%clk 0:01:25]}  Rxa4 {[%clk 0:01:53]} 40. g3 {[%clk 0:01:16]}  Kc2 {[%clk 0:01:49]} 41. Rf1 {[%clk 0:01:15]}  h4 {[%clk 0:01:43]} 42. gxh4 {[%clk 0:01:09]}  b2 {[%clk 0:01:43]} 43. Rf2+ {[%clk 0:01:09]}  Kb3 {[%clk 0:01:39]} 44. Rxb2+ {[%clk 0:01:08]}  Kxb2 {[%clk 0:01:39]} 45. h5 {[%clk 0:01:08]}  gxh5 {[%clk 0:01:10]} 46. f5 {[%clk 0:01:05]}  Kc3 {[%clk 0:01:11]} 47. f6 {[%clk 0:01:04]}  Kd4 {[%clk 0:01:11]} 48. f7 {[%clk 0:01:03]}  Ra6+ {[%clk 0:01:12]} 49. Kf5 {[%clk 0:01:01]}  Ra1 {[%clk 0:01:09]} 50. e6 {[%clk 0:01:01]}  Rf1+ {[%clk 0:00:57]} 51. Kg6 {[%clk 0:01:00]}  Rg1+ {[%clk 0:00:32]} 52. Kxh5 {[%clk 0:00:56]}  Rf1 {[%clk 0:00:31]} 53. e7 {[%clk 0:00:56]}  Rxf7 {[%clk 0:00:32]} 54. e8=Q {[%clk 0:00:56]}  Rf5+ {[%clk 0:00:33]} 55. Kg4 {[%clk 0:00:55]}  Re5 {[%clk 0:00:30]} 56. Qd7+ {[%clk 0:00:54]}  Rd5 {[%clk 0:00:28]} 57. Qe6 {[%clk 0:00:51]}  Re5 {[%clk 0:00:28]} 58. Qf6 {[%clk 0:00:51]}  Kd5 {[%clk 0:00:28]} 59. h4 {[%clk 0:00:51]}  Re4+ {[%clk 0:00:27]} 60. Kg5 {[%clk 0:00:51]}  Re5+ {[%clk 0:00:27]} 61. Qxe5+ {[%clk 0:00:50]}  Kxe5 {[%clk 0:00:27]} 62. h5 {[%clk 0:00:51]}  Ke6 {[%clk 0:00:27]} 63. Kg6 {[%clk 0:00:51]}  Ke7 {[%clk 0:00:28]} 64. h6 {[%clk 0:00:50]}  Kf8 {[%clk 0:00:29]} 65. h7 {[%clk 0:00:50]} 1-0


[Site "https://www.chess.com"]

[Event "Titled Tuesday Blitz December 7 2021"]
[White "Bayo Milagro, Alvaro"]
[Black "Faizrakhmanov, Ramil"]
[WhiteFideId "22275240"]
[BlackFideId "24103209"]
[WhiteElo "2270"]
[BlackElo "2396"]
[Result "1/2-1/2"]
[Round "02"]
[TimeControl "180+1"]
[Date "2021.12.07"]
[WhiteClock "0:00:20"]
[BlackClock "0:00:18"]

1. c4 {[%clk 0:03:00]}  Nf6 {[%clk 0:02:57]} 2. Nf3 {[%clk 0:02:59]}  g6 {[%clk 0:02:57]} 3. g3 {[%clk 0:02:59]}  Bg7 {[%clk 0:02:57]} 4. Bg2 {[%clk 0:03:00]}  O-O {[%clk 0:02:58]} 5. O-O {[%clk 0:03:00]}  d6 {[%clk 0:02:58]} 6. Nc3 {[%clk 0:03:01]}  Nc6 {[%clk 0:02:58]} 7. d3 {[%clk 0:03:00]}  e5 {[%clk 0:02:57]} 8. Rb1 {[%clk 0:02:59]}  a5 {[%clk 0:02:55]} 9. a3 {[%clk 0:03:00]}  h6 {[%clk 0:02:51]} 10. b4 {[%clk 0:02:59]}  axb4 {[%clk 0:02:52]} 11. axb4 {[%clk 0:03:00]}  Be6 {[%clk 0:02:52]} 12. b5 {[%clk 0:02:59]}  Ne7 {[%clk 0:02:52]} 13. Nd2 {[%clk 0:02:58]}  c6 {[%clk 0:02:52]} 14. Bb2 {[%clk 0:02:57]}  d5 {[%clk 0:02:48]} 15. Ra1 {[%clk 0:02:56]}  Nd7 {[%clk 0:02:37]} 16. Qc2 {[%clk 0:02:43]}  Rxa1 {[%clk 0:02:31]} 17. Rxa1 {[%clk 0:02:42]}  d4 {[%clk 0:02:31]} 18. Nce4 {[%clk 0:02:33]}  f5 {[%clk 0:02:22]} 19. bxc6 {[%clk 0:02:23]}  bxc6 {[%clk 0:02:18]} 20. Nd6 {[%clk 0:02:22]}  Nc5 {[%clk 0:02:16]} 21. Ba3 {[%clk 0:02:22]}  Qxd6 {[%clk 0:02:12]} 22. Nb3 {[%clk 0:02:21]}  Ra8 {[%clk 0:02:00]} 23. Qb2 {[%clk 0:02:08]}  Nxb3 {[%clk 0:01:36]} 24. Bxd6 {[%clk 0:02:05]}  Rxa1+ {[%clk 0:01:36]} 25. Bf1 {[%clk 0:02:05]}  f4 {[%clk 0:01:23]} 26. h4 {[%clk 0:01:55]}  Bh3 {[%clk 0:01:13]} 27. Bxe7 {[%clk 0:01:47]}  Rxf1+ {[%clk 0:00:50]} 28. Kh2 {[%clk 0:01:47]}  Rxf2+ {[%clk 0:00:50]} 29. Kxh3 {[%clk 0:01:45]}  f3 {[%clk 0:00:46]} 30. Qxb3 {[%clk 0:01:40]}  fxe2 {[%clk 0:00:46]} 31. Bb4 {[%clk 0:01:23]}  c5 {[%clk 0:00:43]} 32. Ba5 {[%clk 0:01:14]}  Rf1 {[%clk 0:00:42]} 33. Qb2 {[%clk 0:00:44]}  e1=Q {[%clk 0:00:40]} 34. Bxe1 {[%clk 0:00:45]}  Rxe1 {[%clk 0:00:41]} 35. Qb8+ {[%clk 0:00:43]}  Kh7 {[%clk 0:00:41]} 36. Qb7 {[%clk 0:00:41]}  h5 {[%clk 0:00:39]} 37. Qc7 {[%clk 0:00:29]}  Re3 {[%clk 0:00:37]} 38. Qxc5 {[%clk 0:00:29]}  Rxd3 {[%clk 0:00:36]} 39. Qd5 {[%clk 0:00:30]}  Rc3 {[%clk 0:00:34]} 40. c5 {[%clk 0:00:30]}  d3 {[%clk 0:00:33]} 41. c6 {[%clk 0:00:30]}  Rc1 {[%clk 0:00:24]} 42. Qxd3 {[%clk 0:00:21]}  Rxc6 {[%clk 0:00:24]} 43. Qe4 {[%clk 0:00:21]}  Rd6 {[%clk 0:00:23]} 44. Kg2 {[%clk 0:00:19]}  Rd4 {[%clk 0:00:24]} 45. Qb7 {[%clk 0:00:19]}  e4 {[%clk 0:00:22]} 46. Kf2 {[%clk 0:00:20]}  Rd2+ {[%clk 0:00:21]} 47. Ke3 {[%clk 0:00:19]}  Rd3+ {[%clk 0:00:21]} 48. Kf4 {[%clk 0:00:19]}  Rf3+ {[%clk 0:00:20]} 49. Kxe4 {[%clk 0:00:18]}  Rxg3 {[%clk 0:00:21]} 50. Qe7 {[%clk 0:00:18]}  Rg4+ {[%clk 0:00:20]} 51. Kf3 {[%clk 0:00:18]}  Kh6 {[%clk 0:00:20]} 52. Qe3+ {[%clk 0:00:18]}  Kh7 {[%clk 0:00:20]} 53. Qe7 {[%clk 0:00:19]}  Kg8 {[%clk 0:00:19]} 54. Qe8+ {[%clk 0:00:19]}  Bf8 {[%clk 0:00:18]} 55. Qe6+ {[%clk 0:00:19]}  Kg7 {[%clk 0:00:18]} 56. Qd7+ {[%clk 0:00:19]}  Kh6 {[%clk 0:00:17]} 57. Qd2+ {[%clk 0:00:19]}  Kh7 {[%clk 0:00:17]} 58. Qd7+ {[%clk 0:00:19]}  Bg7 {[%clk 0:00:18]} 59. Qe7 {[%clk 0:00:20]} 1/2-1/2


[Site "https://www.chess.com"]

[Event "Titled Tuesday Blitz December 7 2021"]
[White "Begmuratov, Khumoyun"]
[Black "Tarasova, Viktoriya"]
[WhiteFideId "14210207"]
[BlackFideId "4175840"]
[WhiteElo "1961"]
[BlackElo "2182"]
[Result "1-0"]
[Round "02"]
[TimeControl "180+1"]
[Date "2021.12.07"]
[WhiteClock "0:01:29"]
[BlackClock "0:00:20"]

1. e4 {[%clk 0:03:00]}  e5 {[%clk 0:02:59]} 2. Nf3 {[%clk 0:03:00]}  Nc6 {[%clk 0:02:59]} 3. Bb5 {[%clk 0:03:00]}  Nf6 {[%clk 0:02:59]} 4. O-O {[%clk 0:02:57]}  Nxe4 {[%clk 0:02:59]} 5. d4 {[%clk 0:02:56]}  Nd6 {[%clk 0:02:58]} 6. Bxc6 {[%clk 0:02:56]}  dxc6 {[%clk 0:02:58]} 7. dxe5 {[%clk 0:02:56]}  Nf5 {[%clk 0:02:58]} 8. Qxd8+ {[%clk 0:02:56]}  Kxd8 {[%clk 0:02:58]} 9. Nc3 {[%clk 0:02:53]}  Bd7 {[%clk 0:02:57]} 10. Ne4 {[%clk 0:02:52]}  h6 {[%clk 0:02:56]} 11. b3 {[%clk 0:02:51]}  Kc8 {[%clk 0:02:55]} 12. a4 {[%clk 0:02:51]}  Ne7 {[%clk 0:02:55]} 13. Ba3 {[%clk 0:02:49]}  Ng6 {[%clk 0:02:53]} 14. Bxf8 {[%clk 0:02:44]}  Rxf8 {[%clk 0:02:53]} 15. Rfe1 {[%clk 0:02:45]}  b6 {[%clk 0:02:50]} 16. Rad1 {[%clk 0:02:41]}  Bf5 {[%clk 0:02:45]} 17. Nd4 {[%clk 0:02:33]}  Bxe4 {[%clk 0:02:43]} 18. Rxe4 {[%clk 0:02:33]}  Kb7 {[%clk 0:02:43]} 19. e6 {[%clk 0:02:33]}  Rfe8 {[%clk 0:02:32]} 20. f3 {[%clk 0:02:23]}  fxe6 {[%clk 0:01:56]} 21. Nxe6 {[%clk 0:02:15]}  Re7 {[%clk 0:01:49]} 22. Nd8+ {[%clk 0:02:10]}  Ka6 {[%clk 0:01:39]} 23. Nxc6 {[%clk 0:02:08]}  Rxe4 {[%clk 0:01:39]} 24. fxe4 {[%clk 0:02:09]}  Re8 {[%clk 0:01:39]} 25. Re1 {[%clk 0:02:09]}  Kb7 {[%clk 0:01:38]} 26. Nd4 {[%clk 0:02:09]}  Ne5 {[%clk 0:01:34]} 27. Nf3 {[%clk 0:02:06]}  Nxf3+ {[%clk 0:01:29]} 28. gxf3 {[%clk 0:02:07]}  Rd8 {[%clk 0:01:23]} 29. Kf2 {[%clk 0:02:05]}  g5 {[%clk 0:01:22]} 30. Ke3 {[%clk 0:01:57]}  Kc6 {[%clk 0:01:21]} 31. h4 {[%clk 0:01:56]}  Kc5 {[%clk 0:01:01]} 32. hxg5 {[%clk 0:01:54]}  hxg5 {[%clk 0:01:00]} 33. Rg1 {[%clk 0:01:54]}  Rg8 {[%clk 0:01:00]} 34. c3 {[%clk 0:01:53]}  a5 {[%clk 0:00:59]} 35. Ke2 {[%clk 0:01:50]}  b5 {[%clk 0:00:59]} 36. f4 {[%clk 0:01:49]}  g4 {[%clk 0:00:58]} 37. axb5 {[%clk 0:01:47]}  Kxb5 {[%clk 0:00:58]} 38. Ke3 {[%clk 0:01:46]}  c5 {[%clk 0:00:51]} 39. f5 {[%clk 0:01:46]}  c4 {[%clk 0:00:48]} 40. bxc4+ {[%clk 0:01:41]}  Kxc4 {[%clk 0:00:47]} 41. f6 {[%clk 0:01:40]}  Rf8 {[%clk 0:00:40]} 42. e5 {[%clk 0:01:40]}  Kd5 {[%clk 0:00:39]} 43. Kf4 {[%clk 0:01:40]}  Rc8 {[%clk 0:00:38]} 44. Rxg4 {[%clk 0:01:39]}  Rxc3 {[%clk 0:00:34]} 45. Kf5 {[%clk 0:01:38]}  Rf3+ {[%clk 0:00:20]} 46. Rf4 {[%clk 0:01:28]}  Rxf4+ {[%clk 0:00:20]} 47. Kxf4 {[%clk 0:01:28]}  a4 {[%clk 0:00:21]} 48. f7 {[%clk 0:01:28]}  a3 {[%clk 0:00:21]} 49. f8=Q {[%clk 0:01:28]}  a2 {[%clk 0:00:21]} 50. Qg8+ {[%clk 0:01:29]}  Kd4 {[%clk 0:00:20]} 51. Qxa2 {[%clk 0:01:29]} 1-0


[Site "https://www.chess.com"]